[Event "Estonian Chess Championship 2022"]
[Site "Tallinn, Paul Keres Chess House, Estonia"]
[Date "2022.12.18"]
[Round "9.5"]
[White "Medar, Marti"]
[Black "Kiik, Kalle"]
[Result "0-1"]
[TimeControl "90 minutes for first 40 moves and 15 min. for the rest of the game with 30 sec. increment from move 1"]
[BlackTitle "IM"]
[WhiteFideId "4501870"]
[BlackFideId "4500075"]
[WhiteElo "2069"]
[BlackElo "2369"]

1. c4 {

[%clk 01:30:56]

} {

[%emt 00:00:03]

} e6 {

[%clk 01:29:10]

} {

[%emt 00:01:50]

} 2. Nf3 {

[%clk 01:30:41]

} {

[%emt 00:00:45]

} d5 {

[%clk 01:28:18]

} {

[%emt 00:01:22]

} 3. e3 {

[%clk 01:30:38]

} {

[%emt 00:00:33]

} c5 {

[%clk 01:27:51]

} {

[%emt 00:00:57]

} 4. cxd5 {

[%clk 01:27:44]

} {

[%emt 00:03:24]

} exd5 {

[%clk 01:27:44]

} {

[%emt 00:00:36]

} 5. d4 {

[%clk 01:27:23]

} {

[%emt 00:00:51]

} Nf6 {

[%clk 01:27:58]

} {

[%emt 00:00:16]

} 6. Nc3 {

[%clk 01:27:26]

} {

[%emt 00:00:28]

} a6 {

[%clk 01:26:31]

} {

[%emt 00:01:57]

} 7. Be2 {

[%clk 01:26:19]

} {

[%emt 00:01:36]

} Nc6 {

[%clk 01:26:48]

} {

[%emt 00:00:12]

} 8. O-O {

[%clk 01:21:53]

} {

[%emt 00:04:57]

} Bd6 {

[%clk 01:26:16]

} {

[%emt 00:01:01]

} 9. dxc5 {

[%clk 01:17:00]

} {

[%emt 00:05:25]

} Bxc5 {

[%clk 01:26:34]

} {

[%emt 00:00:12]

} 10. Qa4 {

[%clk 01:16:59]

} {

[%emt 00:00:31]

} O-O {

[%clk 01:26:06]

} {

[%emt 00:00:57]

} 11. Rd1 {

[%clk 01:17:16]

} {

[%emt 00:00:14]

} Be6 {

[%clk 01:23:01]

} {

[%emt 00:03:35]

} 12. a3 {

[%clk 01:13:02]

} {

[%emt 00:04:45]

} Bd6 {

[%clk 01:05:42]

} {

[%emt 00:17:49]

} 13. e4 {

[%clk 00:55:07]

} {

[%emt 00:18:25]

} b5 {

[%clk 00:33:13]

} {

[%emt 00:32:59]

} 14. Qc2 {

[%clk 00:54:33]

} {

[%emt 00:01:03]

} Rc8 {

[%clk 00:27:50]

} {

[%emt 00:05:53]

} 15. exd5 {

[%clk 00:46:16]

} {

[%emt 00:08:47]

} Nxd5 {

[%clk 00:27:16]

} {

[%emt 00:01:04]

} 16. Ng5 {

[%clk 00:19:04]

} {

[%emt 00:27:43]

} g6 {

[%clk 00:13:12]

} {

[%emt 00:14:34]

} 17. Nxd5 {

[%clk 00:07:33]

} {

[%emt 00:12:02]

} Bxd5 {

[%clk 00:03:38]

} {

[%emt 00:10:03]

} 18. Qd3 {

[%clk 00:07:37]

} {

[%emt 00:00:25]

} Ne7 {

[%clk 00:03:52]

} {

[%emt 00:00:15]

} 19. Qh3 {

[%clk 00:07:52]

} {

[%emt 00:00:15]

} h5 {

[%clk 00:03:27]

} {

[%emt 00:00:55]

} 20. Bxh5 {

[%clk 00:07:59]

} {

[%emt 00:00:23]

} Kg7 {

[%clk 00:03:07]

} {

[%emt 00:00:50]

} 21. Bxg6 {

[%clk 00:04:14]

} {

[%emt 00:04:15]

} fxg6 {

[%clk 00:02:12]

} {

[%emt 00:01:25]

} 22. Qh7+ {

[%clk 00:01:40]

} {

[%emt 00:03:04]

} Kf6 {

[%clk 00:02:38]

} {

[%emt 00:00:04]

} 23. Rxd5 {

[%clk 00:00:54]

} {

[%emt 00:01:17]

} Bxh2+ {

[%clk 00:02:11]

} {

[%emt 00:00:56]

} 24. Qxh2 {

[%clk 00:00:48]

} {

[%emt 00:00:36]

} Qxd5 {

[%clk 00:02:34]

} {

[%emt 00:00:08]

} 25. Be3 {

[%clk 00:00:43]

} {

[%emt 00:00:35]

} Rh8 {

[%clk 00:02:20]

} {

[%emt 00:00:43]

} 26. Qf4+ {

[%clk 00:00:52]

} {

[%emt 00:00:21]

} Nf5 {

[%clk 00:02:11]

} {

[%emt 00:00:38]

} 27. Ne4+ {

[%clk 00:00:47]

} {

[%emt 00:00:36]

} Kg7 {

[%clk 00:02:09]

} {

[%emt 00:00:32]

} 28. Bd2 {

[%clk 00:00:49]

} {

[%emt 00:00:28]

} Rh4 {

[%clk 00:01:55]

} {

[%emt 00:00:44]

} 29. g4 {

[%clk 00:00:39]

} {

[%emt 00:00:40]

} Rf8 {

[%clk 00:00:59]

} {

[%emt 00:01:26]

} 30. Bc3+ {

[%clk 00:01:00]

} {

[%emt 00:00:10]

} Kg8 {

[%clk 00:01:07]

} {

[%emt 00:00:22]

} 31. Qg5 {

[%clk 00:00:46]

} {

[%emt 00:00:44]

} Qc6 {

[%clk 00:00:44]

} {

[%emt 00:00:53]

} 32. gxf5 {

[%clk 00:00:50]

} {

[%emt 00:00:26]

} Rxe4 {

[%clk 00:00:44]

} {

[%emt 00:00:29]

} 33. fxg6 {

[%clk 00:00:37]

} {

[%emt 00:00:43]

} Qe6 {

[%clk 00:00:57]

} {

[%emt 00:00:18]

} 34. Qh6 {

[%clk 00:00:35]

} {

[%emt 00:00:33]

} Qg4+ {

[%clk 00:01:07]

} {

[%emt 00:00:19]

} 35. Kh1 {

[%clk 00:00:35]

} {

[%emt 00:00:30]

} Qf3+ {

[%clk 00:01:30]

} {

[%emt 00:00:06]

} 36. Kh2 {

[%clk 00:00:53]

} {

[%emt 00:00:12]

} Qxf2+ {

[%clk 00:01:49]

} {

[%emt 00:00:11]

} 0-1